[Event "Titled Tuesday Blitz March 29 Early 2022"]
[White "Oro, Luis"]
[Black "Krysa, Leandro"]
[WhiteFideId "104094"]
[BlackFideId "116807"]
[WhiteElo "2344"]
[BlackElo "2490"]
[Result "1-0"]
[Round "02"]
[TimeControl "180+1"]
[Date "2022.03.30"]
[WhiteClock "0:00:10"]
[BlackClock "0:00:02"]

1. e4 {[%clk 0:03:00]}  e5 {[%clk 0:02:59]} 2. Nf3 {[%clk 0:03:00]}  Nf6 {[%clk 0:02:59]} 3. Nxe5 {[%clk 0:02:58]}  d6 {[%clk 0:02:59]} 4. Nf3 {[%clk 0:02:58]}  Nxe4 {[%clk 0:03:00]} 5. Nc3 {[%clk 0:02:59]}  Nxc3 {[%clk 0:02:59]} 6. dxc3 {[%clk 0:02:59]}  Be7 {[%clk 0:03:00]} 7. Bd3 {[%clk 0:03:00]}  Nc6 {[%clk 0:02:56]} 8. Be3 {[%clk 0:03:00]}  Be6 {[%clk 0:02:44]} 9. Qd2 {[%clk 0:03:00]}  Qd7 {[%clk 0:02:44]} 10. O-O-O {[%clk 0:02:44]}  a6 {[%clk 0:02:34]} 11. Kb1 {[%clk 0:02:42]}  O-O-O {[%clk 0:02:33]} 12. Nd4 {[%clk 0:02:39]}  Nxd4 {[%clk 0:02:29]} 13. Bxd4 {[%clk 0:02:38]}  Bf5 {[%clk 0:01:55]} 14. f3 {[%clk 0:02:29]}  Rhg8 {[%clk 0:01:49]} 15. g4 {[%clk 0:02:27]}  Bg6 {[%clk 0:01:46]} 16. h4 {[%clk 0:02:25]}  Bxd3 {[%clk 0:01:20]} 17. cxd3 {[%clk 0:02:22]}  h6 {[%clk 0:01:21]} 18. Rdg1 {[%clk 0:02:10]}  d5 {[%clk 0:01:20]} 19. f4 {[%clk 0:01:58]}  c5 {[%clk 0:01:16]} 20. Bf2 {[%clk 0:01:56]}  f5 {[%clk 0:01:13]} 21. g5 {[%clk 0:01:45]}  h5 {[%clk 0:01:11]} 22. Re1 {[%clk 0:01:31]}  g6 {[%clk 0:01:06]} 23. Qe2 {[%clk 0:01:30]}  Bd6 {[%clk 0:01:02]} 24. Qf3 {[%clk 0:01:28]}  Kb8 {[%clk 0:00:49]} 25. Rhf1 {[%clk 0:01:19]}  Qc7 {[%clk 0:00:44]} 26. Bg3 {[%clk 0:01:10]}  Qc6 {[%clk 0:00:37]} 27. Re6 {[%clk 0:01:07]}  Rde8 {[%clk 0:00:34]} 28. Rfe1 {[%clk 0:01:05]}  Rxe6 {[%clk 0:00:27]} 29. Rxe6 {[%clk 0:01:01]}  Kc7 {[%clk 0:00:25]} 30. Qe2 {[%clk 0:00:53]}  Kd7 {[%clk 0:00:14]} 31. Bf2 {[%clk 0:00:39]}  Rg7 {[%clk 0:00:13]} 32. Be1 {[%clk 0:00:32]}  Re7 {[%clk 0:00:13]} 33. Rxe7+ {[%clk 0:00:30]}  Bxe7 {[%clk 0:00:14]} 34. Bd2 {[%clk 0:00:31]}  Qe6 {[%clk 0:00:14]} 35. Qf3 {[%clk 0:00:29]}  Bd6 {[%clk 0:00:12]} 36. Kc2 {[%clk 0:00:24]}  b5 {[%clk 0:00:12]} 37. b3 {[%clk 0:00:19]}  Bc7 {[%clk 0:00:12]} 38. Be3 {[%clk 0:00:18]}  Kc6 {[%clk 0:00:12]} 39. c4 {[%clk 0:00:17]}  Bd6 {[%clk 0:00:11]} 40. Bd2 {[%clk 0:00:15]}  Qf7 {[%clk 0:00:10]} 41. Bc3 {[%clk 0:00:15]}  Qe6 {[%clk 0:00:10]} 42. Bf6 {[%clk 0:00:15]}  Bc7 {[%clk 0:00:09]} 43. a4 {[%clk 0:00:15]}  bxa4 {[%clk 0:00:08]} 44. bxa4 {[%clk 0:00:15]}  Qd6 {[%clk 0:00:08]} 45. Be5 {[%clk 0:00:14]}  Qd7 {[%clk 0:00:09]} 46. cxd5+ {[%clk 0:00:14]}  Kb7 {[%clk 0:00:09]} 47. d6+ {[%clk 0:00:14]}  Ka7 {[%clk 0:00:07]} 48. dxc7 {[%clk 0:00:14]}  Qxa4+ {[%clk 0:00:08]} 49. Kd2 {[%clk 0:00:14]}  Qb4+ {[%clk 0:00:07]} 50. Ke2 {[%clk 0:00:14]}  Qb1 {[%clk 0:00:02]} 51. c8=N# {[%clk 0:00:10]} 1-0


[Site "https://www.chess.com"]

[Event "Titled Tuesday Blitz March 29 Early 2022"]
[White "Pakleza, Zbigniew"]
[Black "Riehle, Marco"]
[WhiteFideId "1119290"]
[BlackFideId "12904392"]
[WhiteElo "2467"]
[BlackElo "2462"]
[Result "1-0"]
[Round "02"]
[TimeControl "180+1"]
[Date "2022.03.29"]
[WhiteClock "0:00:07"]
[BlackClock "0:00:43"]

1. d4 {[%clk 0:03:00]}  d5 {[%clk 0:02:59]} 2. Bf4 {[%clk 0:03:00]}  e6 {[%clk 0:02:59]} 3. e3 {[%clk 0:03:00]}  Bd6 {[%clk 0:02:58]} 4. Bg3 {[%clk 0:03:00]}  c5 {[%clk 0:02:58]} 5. c3 {[%clk 0:02:59]}  Nf6 {[%clk 0:02:58]} 6. Nd2 {[%clk 0:03:00]}  O-O {[%clk 0:02:58]} 7. Ngf3 {[%clk 0:02:59]}  Nc6 {[%clk 0:02:59]} 8. Bd3 {[%clk 0:02:59]}  Re8 {[%clk 0:02:59]} 9. Ne5 {[%clk 0:02:59]}  Bxe5 {[%clk 0:02:58]} 10. dxe5 {[%clk 0:02:59]}  Nd7 {[%clk 0:02:58]} 11. Nf3 {[%clk 0:02:56]}  Qc7 {[%clk 0:02:58]} 12. O-O {[%clk 0:02:38]}  g6 {[%clk 0:02:57]} 13. e4 {[%clk 0:02:28]}  Ndxe5 {[%clk 0:02:56]} 14. Nxe5 {[%clk 0:02:29]}  Nxe5 {[%clk 0:02:54]} 15. Bb5 {[%clk 0:02:02]}  Rd8 {[%clk 0:02:46]} 16. Bh4 {[%clk 0:01:46]}  Rd6 {[%clk 0:02:05]} 17. f4 {[%clk 0:01:44]}  dxe4 {[%clk 0:01:58]} 18. fxe5 {[%clk 0:01:45]}  Rxd1 {[%clk 0:01:58]} 19. Raxd1 {[%clk 0:01:46]}  a6 {[%clk 0:01:53]} 20. Be8 {[%clk 0:00:57]}  Kf8 {[%clk 0:01:39]} 21. Bxf7 {[%clk 0:00:50]}  Qxf7 {[%clk 0:01:39]} 22. Rd8+ {[%clk 0:00:46]}  Kg7 {[%clk 0:01:40]} 23. Rxf7+ {[%clk 0:00:26]}  Kxf7 {[%clk 0:01:41]} 24. Kf2 {[%clk 0:00:24]}  h6 {[%clk 0:01:35]} 25. Bf6 {[%clk 0:00:24]}  b5 {[%clk 0:01:34]} 26. Ke3 {[%clk 0:00:24]}  g5 {[%clk 0:01:34]} 27. g4 {[%clk 0:00:23]}  a5 {[%clk 0:01:29]} 28. h3 {[%clk 0:00:20]}  b4 {[%clk 0:01:28]} 29. c4 {[%clk 0:00:20]}  a4 {[%clk 0:01:28]} 30. Rh8 {[%clk 0:00:19]}  Kg6 {[%clk 0:01:21]} 31. Rg8+ {[%clk 0:00:18]}  Kf7 {[%clk 0:01:20]} 32. Rh8 {[%clk 0:00:19]}  a3 {[%clk 0:01:19]} 33. b3 {[%clk 0:00:19]}  Kg6 {[%clk 0:01:18]} 34. Rg8+ {[%clk 0:00:19]}  Kf7 {[%clk 0:01:18]} 35. Rh8 {[%clk 0:00:18]}  Kg6 {[%clk 0:01:16]} 36. Rg8+ {[%clk 0:00:19]}  Kf7 {[%clk 0:01:17]} 37. Rg7+ {[%clk 0:00:19]}  Kf8 {[%clk 0:01:15]} 38. Rc7 {[%clk 0:00:20]}  Ba6 {[%clk 0:01:08]} 39. Rxc5 {[%clk 0:00:12]}  Rb8 {[%clk 0:01:08]} 40. Rc6 {[%clk 0:00:12]}  Bc8 {[%clk 0:01:03]} 41. Rd6 {[%clk 0:00:12]}  Bb7 {[%clk 0:00:53]} 42. Rb6 {[%clk 0:00:12]}  Ke8 {[%clk 0:00:51]} 43. c5 {[%clk 0:00:12]}  Rc8 {[%clk 0:00:49]} 44. Rxb7 {[%clk 0:00:11]}  Rxc5 {[%clk 0:00:49]} 45. Re7+ {[%clk 0:00:12]}  Kf8 {[%clk 0:00:50]} 46. Rxe6 {[%clk 0:00:12]}  Rc2 {[%clk 0:00:49]} 47. Rb6 {[%clk 0:00:12]}  Kf7 {[%clk 0:00:49]} 48. Rxb4 {[%clk 0:00:12]}  Rxa2 {[%clk 0:00:49]} 49. Ra4 {[%clk 0:00:12]}  Ke6 {[%clk 0:00:47]} 50. Ra6+ {[%clk 0:00:12]}  Kd5 {[%clk 0:00:46]} 51. e6 {[%clk 0:00:12]}  Rc2 {[%clk 0:00:43]} 52. e7 {[%clk 0:00:12]}  Rc8 {[%clk 0:00:43]} 53. Rxa3 {[%clk 0:00:11]}  Ke6 {[%clk 0:00:44]} 54. Ra6+ {[%clk 0:00:12]}  Kf7 {[%clk 0:00:44]} 55. Kxe4 {[%clk 0:00:11]}  h5 {[%clk 0:00:45]} 56. gxh5 {[%clk 0:00:11]}  g4 {[%clk 0:00:45]} 57. hxg4 {[%clk 0:00:11]}  Kg8 {[%clk 0:00:46]} 58. g5 {[%clk 0:00:12]}  Kh7 {[%clk 0:00:45]} 59. Rd6 {[%clk 0:00:11]}  Rb8 {[%clk 0:00:44]} 60. g6+ {[%clk 0:00:09]}  Kh6 {[%clk 0:00:45]} 61. Rd8 {[%clk 0:00:08]}  Rb4+ {[%clk 0:00:45]} 62. Kf5 {[%clk 0:00:07]}  Rb5+ {[%clk 0:00:43]} 63. Be5 {[%clk 0:00:08]}  Rb8 {[%clk 0:00:43]} 64. Rxb8 {[%clk 0:00:07]} 1-0


[Site "https://www.chess.com"]

[Event "Titled Tuesday Blitz March 29 Early 2022"]
[White "Papp, Petra"]
[Black "Mikhailovsky, Vladimir"]
[WhiteFideId "739049"]
[BlackFideId "34105414"]
[WhiteElo "2259"]
[BlackElo "2371"]
[Result "1-0"]
[Round "02"]
[TimeControl "180+1"]
[Date "2022.03.30"]
[WhiteClock "0:00:15"]
[BlackClock "0:00:02"]

1. e4 {[%clk 0:03:00]}  Nf6 {[%clk 0:02:49]} 2. e5 {[%clk 0:02:59]}  Nd5 {[%clk 0:02:47]} 3. d4 {[%clk 0:02:59]}  d6 {[%clk 0:02:47]} 4. c4 {[%clk 0:02:58]}  Nb6 {[%clk 0:02:47]} 5. exd6 {[%clk 0:02:59]}  exd6 {[%clk 0:02:48]} 6. Nf3 {[%clk 0:02:52]}  Be7 {[%clk 0:02:48]} 7. h3 {[%clk 0:02:45]}  O-O {[%clk 0:02:47]} 8. Bd3 {[%clk 0:02:45]}  Nc6 {[%clk 0:02:47]} 9. O-O {[%clk 0:02:44]}  Re8 {[%clk 0:02:47]} 10. Nc3 {[%clk 0:02:43]}  Bf6 {[%clk 0:02:40]} 11. Be3 {[%clk 0:02:38]}  Nb4 {[%clk 0:02:40]} 12. b3 {[%clk 0:02:35]}  Nxd3 {[%clk 0:02:39]} 13. Qxd3 {[%clk 0:02:35]}  c6 {[%clk 0:02:31]} 14. Rfe1 {[%clk 0:02:32]}  d5 {[%clk 0:02:30]} 15. c5 {[%clk 0:02:30]}  Nd7 {[%clk 0:02:30]} 16. b4 {[%clk 0:02:30]}  a6 {[%clk 0:02:23]} 17. Bf4 {[%clk 0:02:22]}  Nf8 {[%clk 0:02:19]} 18. a4 {[%clk 0:01:55]}  g6 {[%clk 0:02:15]} 19. Be5 {[%clk 0:01:46]}  Bf5 {[%clk 0:02:12]} 20. Qd2 {[%clk 0:01:43]}  Nd7 {[%clk 0:02:10]} 21. Bxf6 {[%clk 0:01:35]}  Qxf6 {[%clk 0:01:57]} 22. Qg5 {[%clk 0:01:32]}  Be4 {[%clk 0:01:33]} 23. Qxf6 {[%clk 0:01:25]}  Nxf6 {[%clk 0:01:32]} 24. Ne5 {[%clk 0:01:24]}  Bf5 {[%clk 0:01:18]} 25. b5 {[%clk 0:01:18]}  Bd7 {[%clk 0:00:55]} 26. b6 {[%clk 0:01:11]}  Re6 {[%clk 0:00:39]} 27. Re3 {[%clk 0:01:08]}  Rae8 {[%clk 0:00:38]} 28. Rae1 {[%clk 0:01:08]}  Bc8 {[%clk 0:00:37]} 29. g4 {[%clk 0:01:06]}  h6 {[%clk 0:00:27]} 30. Kg2 {[%clk 0:01:05]}  Kg7 {[%clk 0:00:27]} 31. Kg3 {[%clk 0:01:05]}  Ng8 {[%clk 0:00:22]} 32. Nd3 {[%clk 0:00:58]}  Rxe3+ {[%clk 0:00:16]} 33. Rxe3 {[%clk 0:00:58]}  Rxe3+ {[%clk 0:00:17]} 34. fxe3 {[%clk 0:00:59]}  f5 {[%clk 0:00:17]} 35. Ne5 {[%clk 0:00:45]}  Kf6 {[%clk 0:00:15]} 36. gxf5 {[%clk 0:00:39]}  Kxf5 {[%clk 0:00:11]} 37. Nf7 {[%clk 0:00:36]}  Ke6 {[%clk 0:00:08]} 38. Nd6 {[%clk 0:00:34]}  Ne7 {[%clk 0:00:07]} 39. Kf3 {[%clk 0:00:19]}  Kf6 {[%clk 0:00:04]} 40. h4 {[%clk 0:00:17]}  g5 {[%clk 0:00:04]} 41. h5 {[%clk 0:00:15]}  Ke6 {[%clk 0:00:02]} 42. Ne2 {[%clk 0:00:15]} 1-0


[Site "https://www.chess.com"]

[Event "Titled Tuesday Blitz March 29 Early 2022"]
[White "Pein, Jonathan"]
[Black "Atakhan, Abtin"]
[WhiteFideId "417092"]
[BlackFideId "22502203"]
[WhiteElo "2140"]
[BlackElo "2119"]
[Result "0-1"]
[Round "02"]
[TimeControl "180+1"]
[Date "2022.03.30"]
[WhiteClock "0:01:24"]
[BlackClock "0:01:54"]

1. e4 {[%clk 0:03:00]}  c5 {[%clk 0:03:00]} 2. Nf3 {[%clk 0:03:00]}  Nc6 {[%clk 0:03:00]} 3. Bb5 {[%clk 0:02:59]}  g6 {[%clk 0:02:59]} 4. O-O {[%clk 0:02:58]}  Bg7 {[%clk 0:03:00]} 5. Re1 {[%clk 0:02:58]}  e5 {[%clk 0:03:00]} 6. Nc3 {[%clk 0:02:58]}  Nge7 {[%clk 0:02:59]} 7. a3 {[%clk 0:02:54]}  O-O {[%clk 0:02:56]} 8. Nd5 {[%clk 0:02:54]}  d6 {[%clk 0:02:54]} 9. c3 {[%clk 0:02:48]}  Nxd5 {[%clk 0:02:53]} 10. exd5 {[%clk 0:02:49]}  Ne7 {[%clk 0:02:54]} 11. Bc4 {[%clk 0:02:44]}  b5 {[%clk 0:02:52]} 12. Bxb5 {[%clk 0:02:43]}  Bb7 {[%clk 0:02:47]} 13. c4 {[%clk 0:02:18]}  h6 {[%clk 0:02:44]} 14. d3 {[%clk 0:02:12]}  Rb8 {[%clk 0:02:40]} 15. Ba4 {[%clk 0:02:10]}  Bc8 {[%clk 0:02:34]} 16. Bc2 {[%clk 0:02:07]}  Bg4 {[%clk 0:02:34]} 17. h3 {[%clk 0:02:07]}  Bxf3 {[%clk 0:02:35]} 18. Qxf3 {[%clk 0:02:08]}  Nf5 {[%clk 0:02:36]} 19. Be3 {[%clk 0:02:07]}  Rxb2 {[%clk 0:02:35]} 20. Ba4 {[%clk 0:02:06]}  Qa5 {[%clk 0:02:31]} 21. Bd7 {[%clk 0:02:03]}  Nxe3 {[%clk 0:02:20]} 22. Qxe3 {[%clk 0:01:57]}  Rfb8 {[%clk 0:02:13]} 23. a4 {[%clk 0:01:50]}  e4 {[%clk 0:01:59]} 24. Qxe4 {[%clk 0:01:40]}  Bd4 {[%clk 0:01:57]} 25. Re2 {[%clk 0:01:39]}  Rxe2 {[%clk 0:01:57]} 26. Qxe2 {[%clk 0:01:39]}  Bxa1 {[%clk 0:01:58]} 27. h4 {[%clk 0:01:28]}  Be5 {[%clk 0:01:57]} 28. g3 {[%clk 0:01:27]}  Rb1+ {[%clk 0:01:55]} 29. Kg2 {[%clk 0:01:26]}  Rb2 {[%clk 0:01:56]} 30. Qf3 {[%clk 0:01:24]}  Bd4 {[%clk 0:01:54]} 0-1


[Site "https://www.chess.com"]

[Event "Titled Tuesday Blitz March 29 Early 2022"]
[White "Perera Alfonso, Rene Humberto"]
[Black "Bacrot, Etienne"]
[WhiteFideId "3514722"]
[BlackFideId "605506"]
[WhiteElo "2313"]
[BlackElo "2673"]
[Result "0-1"]
[Round "02"]
[TimeControl "180+1"]
[Date "2022.03.29"]
[WhiteClock "0:00:43"]
[BlackClock "0:00:03"]

1. e4 {[%clk 0:03:00]}  c5 {[%clk 0:02:59]} 2. Nf3 {[%clk 0:02:59]}  d6 {[%clk 0:03:00]} 3. d4 {[%clk 0:03:00]}  cxd4 {[%clk 0:03:00]} 4. Nxd4 {[%clk 0:03:01]}  Nf6 {[%clk 0:03:00]} 5. Nc3 {[%clk 0:03:01]}  Nc6 {[%clk 0:03:01]} 6. Bc4 {[%clk 0:03:01]}  e6 {[%clk 0:03:00]} 7. Be3 {[%clk 0:03:00]}  Be7 {[%clk 0:02:59]} 8. Qe2 {[%clk 0:03:00]}  a6 {[%clk 0:02:58]} 9. O-O-O {[%clk 0:02:59]}  Na5 {[%clk 0:02:55]} 10. Bd3 {[%clk 0:02:58]}  b5 {[%clk 0:02:47]} 11. g4 {[%clk 0:02:53]}  b4 {[%clk 0:02:34]} 12. Na4 {[%clk 0:02:51]}  Bd7 {[%clk 0:02:35]} 13. Nb6 {[%clk 0:02:47]}  Qxb6 {[%clk 0:02:30]} 14. Nxe6 {[%clk 0:02:47]}  Qc6 {[%clk 0:01:47]} 15. Nxg7+ {[%clk 0:02:43]}  Kd8 {[%clk 0:01:37]} 16. Nf5 {[%clk 0:02:39]}  Bxf5 {[%clk 0:01:32]} 17. exf5 {[%clk 0:02:40]}  Rb8 {[%clk 0:01:11]} 18. Rhe1 {[%clk 0:02:29]}  b3 {[%clk 0:00:43]} 19. axb3 {[%clk 0:02:27]}  Re8 {[%clk 0:00:39]} 20. Kb1 {[%clk 0:02:04]}  Nd7 {[%clk 0:00:38]} 21. Bd4 {[%clk 0:01:57]}  Kc7 {[%clk 0:00:29]} 22. Qd2 {[%clk 0:01:33]}  Nb7 {[%clk 0:00:23]} 23. g5 {[%clk 0:01:29]}  Nbc5 {[%clk 0:00:14]} 24. Bc4 {[%clk 0:01:26]}  d5 {[%clk 0:00:09]} 25. Bxd5 {[%clk 0:01:19]}  Qxd5 {[%clk 0:00:08]} 26. Be5+ {[%clk 0:01:18]}  Qxe5 {[%clk 0:00:08]} 27. Rxe5 {[%clk 0:01:18]}  Nxe5 {[%clk 0:00:08]} 28. f6 {[%clk 0:01:14]}  Bf8 {[%clk 0:00:08]} 29. Qf4 {[%clk 0:01:10]}  Nd7 {[%clk 0:00:07]} 30. h4 {[%clk 0:01:06]}  Re6 {[%clk 0:00:07]} 31. h5 {[%clk 0:01:06]}  Rc6 {[%clk 0:00:06]} 32. g6 {[%clk 0:01:04]}  hxg6 {[%clk 0:00:05]} 33. hxg6 {[%clk 0:01:05]}  fxg6 {[%clk 0:00:06]} 34. f7 {[%clk 0:01:05]}  Rc8 {[%clk 0:00:05]} 35. Rxd7+ {[%clk 0:00:55]}  Kxd7 {[%clk 0:00:05]} 36. Qxe5 {[%clk 0:00:56]}  Rxc2 {[%clk 0:00:05]} 37. Qe4 {[%clk 0:00:49]}  R2c5 {[%clk 0:00:04]} 38. Qxg6 {[%clk 0:00:48]}  Ke7 {[%clk 0:00:04]} 39. f4 {[%clk 0:00:46]}  R5c6 {[%clk 0:00:04]} 40. Qh5 {[%clk 0:00:46]}  Rc1+ {[%clk 0:00:03]} 41. Ka2 {[%clk 0:00:45]}  R8c5 {[%clk 0:00:04]} 42. f5 {[%clk 0:00:43]}  Ra5# {[%clk 0:00:03]} 0-1


[Site "https://www.chess.com"]

[Event "Titled Tuesday Blitz March 29 Early 2022"]
[White "Pesotskiy, Mikhail"]
[Black "Aravindh, Chithambaram VR."]
[WhiteFideId "34164453"]
[BlackFideId "5072786"]
[WhiteElo "2010"]
[BlackElo "2561"]
[Result "0-1"]
[Round "02"]
[TimeControl "180+1"]
[Date "2022.03.30"]
[WhiteClock "0:02:13"]
[BlackClock "0:02:09"]

1. d4 {[%clk 0:03:00]}  g6 {[%clk 0:03:00]} 2. c4 {[%clk 0:03:00]}  Bg7 {[%clk 0:03:00]} 3. e4 {[%clk 0:03:01]}  d6 {[%clk 0:03:00]} 4. Nc3 {[%clk 0:03:01]}  e5 {[%clk 0:02:59]} 5. d5 {[%clk 0:03:00]}  Ne7 {[%clk 0:02:59]} 6. h4 {[%clk 0:02:56]}  h6 {[%clk 0:02:54]} 7. h5 {[%clk 0:02:51]}  g5 {[%clk 0:02:45]} 8. Be2 {[%clk 0:02:51]}  f5 {[%clk 0:02:45]} 9. exf5 {[%clk 0:02:52]}  Bxf5 {[%clk 0:02:44]} 10. Bg4 {[%clk 0:02:52]}  Nd7 {[%clk 0:02:41]} 11. Bxf5 {[%clk 0:02:46]}  Nxf5 {[%clk 0:02:42]} 12. Qd3 {[%clk 0:02:47]}  O-O {[%clk 0:02:42]} 13. Nge2 {[%clk 0:02:45]}  Nc5 {[%clk 0:02:41]} 14. Qh3 {[%clk 0:02:40]}  g4 {[%clk 0:02:10]} 15. Qxg4 {[%clk 0:02:12]}  Nd3+ {[%clk 0:02:10]} 16. Kd2 {[%clk 0:02:13]}  Nxf2 {[%clk 0:02:10]} 17. Qg6 {[%clk 0:02:12]}  Nxh1 {[%clk 0:02:09]} 18. Ne4 {[%clk 0:02:13]} 0-1


[Site "https://www.chess.com"]

[Event "Titled Tuesday Blitz March 29 Early 2022"]
[White "Polanco Nunez, Yoel Estarling"]
[Black "Fier, Alexandr"]
[WhiteFideId "6401783"]
[BlackFideId "2107139"]
[WhiteElo "2132"]
[BlackElo "2571"]
[Result "0-1"]
[Round "02"]
[TimeControl "180+1"]
[Date "2022.03.30"]
[WhiteClock "0:01:43"]
[BlackClock "0:01:31"]

1. d4 {[%clk 0:03:00]}  Nf6 {[%clk 0:02:59]} 2. Nf3 {[%clk 0:03:00]}  e6 {[%clk 0:02:59]} 3. e3 {[%clk 0:02:59]}  c5 {[%clk 0:02:58]} 4. Bd3 {[%clk 0:02:58]}  b6 {[%clk 0:02:57]} 5. O-O {[%clk 0:02:58]}  Bb7 {[%clk 0:02:57]} 6. b3 {[%clk 0:02:57]}  Be7 {[%clk 0:02:57]} 7. Bb2 {[%clk 0:02:58]}  O-O {[%clk 0:02:57]} 8. Nbd2 {[%clk 0:02:59]}  d5 {[%clk 0:02:56]} 9. a3 {[%clk 0:02:55]}  Nc6 {[%clk 0:02:56]} 10. Qe2 {[%clk 0:02:54]}  Rc8 {[%clk 0:02:51]} 11. Rfc1 {[%clk 0:02:49]}  Bd6 {[%clk 0:02:37]} 12. Ba6 {[%clk 0:02:48]}  Qc7 {[%clk 0:02:35]} 13. Bxb7 {[%clk 0:02:48]}  Qxb7 {[%clk 0:02:36]} 14. dxc5 {[%clk 0:02:42]}  bxc5 {[%clk 0:02:34]} 15. e4 {[%clk 0:02:37]}  Nxe4 {[%clk 0:02:23]} 16. Nxe4 {[%clk 0:02:37]}  dxe4 {[%clk 0:02:22]} 17. Qxe4 {[%clk 0:02:37]}  Qe7 {[%clk 0:02:21]} 18. Nd2 {[%clk 0:02:31]}  Nd4 {[%clk 0:02:04]} 19. Bxd4 {[%clk 0:02:24]}  cxd4 {[%clk 0:02:02]} 20. Nc4 {[%clk 0:02:24]}  e5 {[%clk 0:01:58]} 21. Re1 {[%clk 0:02:23]}  Rce8 {[%clk 0:01:57]} 22. Qd5 {[%clk 0:02:17]}  Bb8 {[%clk 0:01:56]} 23. Rad1 {[%clk 0:02:14]}  Qf6 {[%clk 0:01:53]} 24. g3 {[%clk 0:02:11]}  h5 {[%clk 0:01:53]} 25. h4 {[%clk 0:02:09]}  Qg6 {[%clk 0:01:34]} 26. Kg2 {[%clk 0:02:06]}  Qxc2 {[%clk 0:01:33]} 27. Nxe5 {[%clk 0:02:02]}  Rxe5 {[%clk 0:01:31]} 28. Rxe5 {[%clk 0:01:48]}  Bxe5 {[%clk 0:01:32]} 29. Re1 {[%clk 0:01:46]}  Bf6 {[%clk 0:01:32]} 30. b4 {[%clk 0:01:43]}  d3 {[%clk 0:01:31]} 0-1


[Site "https://www.chess.com"]

[Event "Titled Tuesday Blitz March 29 Early 2022"]
[White "Pourkashiyan, Atousa"]
[Black "Hartikainen, Jarmo"]
[WhiteFideId "12502014"]
[BlackFideId "503134"]
[WhiteElo "2247"]
[BlackElo "2070"]
[Result "1-0"]
[Round "02"]
[TimeControl "180+1"]
[Date "2022.03.30"]
[WhiteClock "0:01:04"]
[BlackClock "0:00:12"]

1. e4 {[%clk 0:02:52]}  c5 {[%clk 0:02:58]} 2. Nf3 {[%clk 0:02:51]}  Nc6 {[%clk 0:02:58]} 3. d4 {[%clk 0:02:47]}  cxd4 {[%clk 0:02:58]} 4. Nxd4 {[%clk 0:02:48]}  Nf6 {[%clk 0:02:58]} 5. Nc3 {[%clk 0:02:48]}  d6 {[%clk 0:02:58]} 6. Bc4 {[%clk 0:02:47]}  e6 {[%clk 0:02:58]} 7. O-O {[%clk 0:02:47]}  a6 {[%clk 0:02:54]} 8. Bb3 {[%clk 0:02:39]}  Bd7 {[%clk 0:02:53]} 9. Be3 {[%clk 0:02:36]}  Qc7 {[%clk 0:02:51]} 10. f4 {[%clk 0:02:33]}  Be7 {[%clk 0:02:49]} 11. Qf3 {[%clk 0:02:32]}  O-O {[%clk 0:02:33]} 12. Rae1 {[%clk 0:02:30]}  Rac8 {[%clk 0:02:30]} 13. Kh1 {[%clk 0:02:30]}  b5 {[%clk 0:02:29]} 14. a3 {[%clk 0:02:29]}  Nxd4 {[%clk 0:02:13]} 15. Bxd4 {[%clk 0:02:28]}  Bc6 {[%clk 0:02:13]} 16. Qg3 {[%clk 0:02:14]}  Rfd8 {[%clk 0:01:10]} 17. f5 {[%clk 0:01:58]}  e5 {[%clk 0:01:05]} 18. Be3 {[%clk 0:01:57]}  Qb7 {[%clk 0:01:01]} 19. Bh6 {[%clk 0:01:52]}  Bf8 {[%clk 0:00:56]} 20. Bg5 {[%clk 0:01:41]}  Be7 {[%clk 0:00:54]} 21. Bxf6 {[%clk 0:01:31]}  Bxf6 {[%clk 0:00:53]} 22. Bd5 {[%clk 0:01:28]}  Kh8 {[%clk 0:00:24]} 23. Rf3 {[%clk 0:01:09]}  Bxd5 {[%clk 0:00:20]} 24. Nxd5 {[%clk 0:01:10]}  Rxc2 {[%clk 0:00:19]} 25. Nxf6 {[%clk 0:01:04]}  gxf6 {[%clk 0:00:20]} 26. Qh4 {[%clk 0:01:05]}  Rg8 {[%clk 0:00:12]} 27. Qxf6+ {[%clk 0:01:04]}  Rg7 {[%clk 0:00:12]} 28. Rg3 {[%clk 0:01:04]} 1-0


[Site "https://www.chess.com"]

[Event "Titled Tuesday Blitz March 29 Early 2022"]
[White "Rastbod, Ali"]
[Black "Jarocka, Liwia"]
[WhiteFideId "12567477"]
[BlackFideId "21807558"]
[WhiteElo "2200"]
[BlackElo "1896"]
[Result "1-0"]
[Round "02"]
[TimeControl "180+1"]
[Date "2022.03.30"]
[WhiteClock "0:00:17"]
[BlackClock "0:01:25"]

1. Nf3 {[%clk 0:03:00]}  c6 {[%clk 0:02:59]} 2. g3 {[%clk 0:02:58]}  d5 {[%clk 0:03:00]} 3. Bg2 {[%clk 0:02:57]}  Nf6 {[%clk 0:03:01]} 4. O-O {[%clk 0:02:57]}  g6 {[%clk 0:03:00]} 5. c4 {[%clk 0:02:54]}  Bg7 {[%clk 0:03:00]} 6. d4 {[%clk 0:02:51]}  O-O {[%clk 0:03:00]} 7. cxd5 {[%clk 0:02:51]}  cxd5 {[%clk 0:02:56]} 8. Ne5 {[%clk 0:02:48]}  Nc6 {[%clk 0:02:55]} 9. Nc3 {[%clk 0:02:42]}  Bf5 {[%clk 0:02:47]} 10. Bf4 {[%clk 0:02:02]}  Ne4 {[%clk 0:02:46]} 11. Nxe4 {[%clk 0:01:58]}  Bxe4 {[%clk 0:02:43]} 12. Nxc6 {[%clk 0:01:55]}  bxc6 {[%clk 0:02:43]} 13. Bxe4 {[%clk 0:01:42]}  dxe4 {[%clk 0:02:44]} 14. e3 {[%clk 0:01:42]}  c5 {[%clk 0:02:41]} 15. dxc5 {[%clk 0:01:39]}  Bxb2 {[%clk 0:02:40]} 16. Rb1 {[%clk 0:01:36]}  Ba3 {[%clk 0:02:40]} 17. Qc2 {[%clk 0:00:55]}  Qd3 {[%clk 0:02:33]} 18. Qxd3 {[%clk 0:00:41]}  exd3 {[%clk 0:02:34]} 19. c6 {[%clk 0:00:41]}  Rac8 {[%clk 0:02:28]} 20. c7 {[%clk 0:00:30]}  d2 {[%clk 0:02:25]} 21. Rfd1 {[%clk 0:00:26]}  Bc1 {[%clk 0:02:25]} 22. e4 {[%clk 0:00:24]}  f6 {[%clk 0:02:21]} 23. Rb7 {[%clk 0:00:23]}  e5 {[%clk 0:01:52]} 24. Bxd2 {[%clk 0:00:23]}  Bxd2 {[%clk 0:01:52]} 25. Rxd2 {[%clk 0:00:24]}  h5 {[%clk 0:01:45]} 26. Rd7 {[%clk 0:00:21]}  a5 {[%clk 0:01:43]} 27. a4 {[%clk 0:00:20]}  Rfe8 {[%clk 0:01:30]} 28. Kf1 {[%clk 0:00:17]}  Kf8 {[%clk 0:01:29]} 29. Rb6 {[%clk 0:00:18]}  Kg8 {[%clk 0:01:25]} 30. Rxf6 {[%clk 0:00:17]} 1-0


[Site "https://www.chess.com"]

[Event "Titled Tuesday Blitz March 29 Early 2022"]
[White "Ravi, Teja S."]
[Black "Hakobyan, Aram"]
[WhiteFideId "5017220"]
[BlackFideId "13306677"]
[WhiteElo "2412"]
[BlackElo "2557"]
[Result "0-1"]
[Round "02"]
[TimeControl "180+1"]
[Date "2022.03.29"]
[WhiteClock "0:02:17"]
[BlackClock "0:02:17"]

1. d4 {[%clk 0:03:00]}  Nf6 {[%clk 0:02:59]} 2. c4 {[%clk 0:02:59]}  e6 {[%clk 0:02:58]} 3. Nc3 {[%clk 0:02:59]}  Bb4 {[%clk 0:02:57]} 4. e3 {[%clk 0:03:00]}  Bxc3+ {[%clk 0:02:57]} 5. bxc3 {[%clk 0:02:59]}  c5 {[%clk 0:02:58]} 6. Bd3 {[%clk 0:02:55]}  d6 {[%clk 0:02:58]} 7. Qe2 {[%clk 0:02:55]}  Nc6 {[%clk 0:02:57]} 8. f4 {[%clk 0:02:56]}  e5 {[%clk 0:02:48]} 9. fxe5 {[%clk 0:02:55]}  dxe5 {[%clk 0:02:48]} 10. d5 {[%clk 0:02:54]}  e4 {[%clk 0:02:49]} 11. Bc2 {[%clk 0:02:44]}  Ne5 {[%clk 0:02:49]} 12. a4 {[%clk 0:02:39]}  Bg4 {[%clk 0:02:47]} 13. Qf1 {[%clk 0:02:38]}  O-O {[%clk 0:02:43]} 14. Ba3 {[%clk 0:02:37]}  Qa5 {[%clk 0:02:33]} 15. Kd2 {[%clk 0:02:35]}  Rfd8 {[%clk 0:02:23]} 16. h3 {[%clk 0:02:33]}  Nxd5 {[%clk 0:02:19]} 17. cxd5 {[%clk 0:02:32]}  Rxd5+ {[%clk 0:02:20]} 18. Kc1 {[%clk 0:02:32]}  Qxc3 {[%clk 0:02:19]} 19. hxg4 {[%clk 0:02:18]}  Qxa1+ {[%clk 0:02:17]} 20. Bb1 {[%clk 0:02:17]}  Qxa3+ {[%clk 0:02:17]} 0-1


[Site "https://www.chess.com"]